bitfinex/quotes_BTCUSD_20250904
["timestamp","ask_amount","ask_price","bid_price","bid_amount"]
[1757003708438,0.8354933,109710.0,109700.0,0.003]
[1757003708848,0.8354933,109710.0,109680.0,0.18346608]
[1757003708849,0.18232874,109700.0,109680.0,0.18346608]
[1757003709058,0.6141037,109690.0,109680.0,0.68341756]
[1757003709688,0.6141037,109690.0,109680.0,0.68644756]
[1757003709867,0.79643572,109690.0,109680.0,0.68644756]
[1757003710064,0.79643572,109690.0,109680.0,0.68744756]
[1757003710274,0.79643572,109690.0,109680.0,0.68732756]
[1757003710839,0.6141037,109690.0,109680.0,0.68736756]
[1757003711339,0.6141037,109690.0,109680.0,0.69036756]
[1757003711564,0.6120837,109690.0,109680.0,0.68936756]
[1757003711937,0.6120837,109690.0,109680.0,0.69136756]
[1757003712582,0.34301874,109700.0,109690.0,0.18233202]
[1757003712810,0.95510244,109700.0,109690.0,0.18233202]
[1757003713013,0.95712244,109700.0,109690.0,0.18233202]
[1757003713150,0.95712244,109700.0,109680.0,0.68923756]
[1757003713356,0.6120837,109690.0,109680.0,0.68723756]
[1757003713571,0.37771898,109690.0,109680.0,0.68936756]
[1757003714187,0.37771898,109690.0,109680.0,0.68636756]
[1757003714960,0.37771898,109690.0,109680.0,0.68936756]
[1757003715161,0.562071,109690.0,109680.0,0.18873756]
[1757003715366,0.94279998,109690.0,109680.0,0.00314148]
[1757003715531,0.94279998,109690.0,109680.0,0.00514148]
[1757003715975,0.97211998,109690.0,109680.0,0.00514148]
[1757003716811,0.97211998,109690.0,109680.0,0.00314148]
[1757003717034,0.97211998,109690.0,109680.0,0.00014148]
[1757003717379,0.97211998,109690.0,109680.0,0.00214148]
[1757003718391,0.97211998,109690.0,109680.0,0.00314148]
[1757003718809,0.78776796,109690.0,109680.0,0.00214148]
[1757003719007,0.97211998,109690.0,109680.0,0.00314148]
[1757003719917,0.97211998,109690.0,109680.0,0.00214148]
[1757003720539,0.97211998,109690.0,109680.0,0.00014148]
[1757003720751,1.06403597,109690.0,109680.0,0.00114148]
[1757003720962,1.4255311,109690.0,109680.0,0.00114148]
[1757003721191,1.40403597,109690.0,109680.0,0.00114148]
[1757003721396,1.47123597,109690.0,109680.0,0.00114148]
[1757003721978,1.47123597,109690.0,109680.0,0.00014148]
[1757003723368,1.62883597,109690.0,109680.0,0.00014148]
[1757003724781,1.47123597,109690.0,109680.0,0.00014148]
[1757003724987,1.62883597,109690.0,109680.0,0.00014148]
[1757003725575,0.87339801,109690.0,109680.0,0.00227148]
[1757003725803,0.18233202,109690.0,109680.0,0.00530148]
[1757003726033,0.717651,109690.0,109680.0,0.00530148]
[1757003726974,1.09738998,109690.0,109680.0,0.00227148]
[1757003727482,0.34195202,109690.0,109680.0,0.00227148]
[1757003727706,1.09738998,109690.0,109680.0,0.00227148]
[1757003728918,0.34195202,109690.0,109680.0,0.00227148]
[1757003729105,1.09738998,109690.0,109680.0,0.00227148]
[1757003729299,1.09738998,109690.0,109680.0,0.00530148]
[1757003729532,1.09738998,109690.0,109680.0,0.00227148]
[1757003729942,1.09738998,109690.0,109680.0,0.00014148]
[1757003731089,1.10039998,109690.0,109680.0,0.00014148]
[1757003731309,1.09738998,109690.0,109680.0,0.00014148]
[1757003733393,1.09738998,109690.0,109680.0,0.00227148]
[1757003733592,1.09738998,109690.0,109680.0,0.00530148]
[1757003734055,0.34195202,109690.0,109680.0,0.00227148]
[1757003734260,0.34195202,109690.0,109680.0,0.00014148]
[1757003734261,1.09738998,109690.0,109680.0,0.00014148]
[1757003734549,1.10039998,109690.0,109680.0,0.00014148]
[1757003735143,0.89027347,109690.0,109680.0,0.00014148]
[1757003735344,1.07260549,109690.0,109680.0,0.00014148]
[1757003737206,1.16452148,109690.0,109680.0,0.00014148]
[1757003739202,1.1841808,109690.0,109680.0,0.00014148]
[1757003739402,1.16452148,109690.0,109680.0,0.00014148]
[1757003739613,1.21139145,109690.0,109680.0,0.00014148]
[1757003741538,1.55139145,109690.0,109680.0,0.00014148]
[1757003741875,1.42158594,109690.0,109680.0,0.00014148]
[1757003742099,0.82109798,109690.0,109680.0,0.00014148]
[1757003742303,1.57653594,109690.0,109680.0,0.00014148]
[1757003742539,1.57974594,109690.0,109680.0,0.00014148]
[1757003743609,1.67166193,109690.0,109680.0,0.00014148]
[1757003744241,2.07031973,109690.0,109680.0,0.00014148]
[1757003745038,1.69260075,109690.0,109680.0,0.00014148]
[1757003745240,1.4669566,109690.0,109680.0,0.00014148]
[1757003745433,0.71151864,109690.0,109680.0,0.00014148]
[1757003745645,1.57645594,109690.0,109680.0,0.00014148]
[1757003746059,1.57966594,109690.0,109680.0,0.00014148]
[1757003748928,0.82422798,109690.0,109680.0,0.00014148]
[1757003749152,1.57645594,109690.0,109680.0,0.00014148]
[1757003749357,1.54916594,109690.0,109680.0,0.00542148]
[1757003749564,1.54916594,109690.0,109680.0,0.00222148]
[1757003749773,1.55237594,109690.0,109680.0,0.00014148]
[1757003753300,1.67150193,109690.0,109680.0,0.00014148]
[1757003755299,1.57958594,109690.0,109680.0,0.00014148]
[1757003757572,1.95805453,109690.0,109680.0,0.00014148]
[1757003758218,1.95805453,109690.0,109680.0,0.00222148]
[1757003758219,1.86424453,109690.0,109680.0,0.00222148]
[1757003758433,1.97505456,109690.0,109680.0,0.00542148]
[1757003758850,1.99473712,109690.0,109680.0,0.00542148]
[1757003759138,1.99473712,109690.0,109680.0,0.00014148]
[1757003759270,1.97505456,109690.0,109680.0,0.00222148]
[1757003759472,1.97505456,109690.0,109680.0,0.00014148]
[1757003760527,1.81737456,109690.0,109680.0,0.00014148]
[1757003760723,1.81737456,109690.0,109680.0,0.00222148]
[1757003761053,1.97505456,109690.0,109680.0,0.00542148]
[1757003762087,1.97826456,109690.0,109680.0,0.00014148]
[1757003762507,2.00645865,109690.0,109680.0,0.00014148]
[1757003762738,2.03366865,109690.0,109680.0,0.00014148]
[1757003763578,3.18851402,109690.0,109680.0,0.00014148]
[1757003763787,1.31628845,109660.0,109650.0,0.07674631]
[1757003763989,1.47396845,109660.0,109650.0,0.07674631]
[1757003764192,1.47396845,109660.0,109650.0,0.07882631]
[1757003764854,1.47396845,109660.0,109650.0,0.00528]
[1757003765337,1.47396845,109660.0,109650.0,0.00628]
[1757003765978,1.65995043,109660.0,109650.0,0.00628]
[1757003766194,2.86404698,109660.0,109650.0,0.001]
[1757003766647,2.77213099,109660.0,109650.0,0.002]
[1757003766856,3.11213099,109660.0,109650.0,0.002]
[1757003767052,3.11213099,109660.0,109650.0,0.001]
[1757003767465,0.18239854,109650.0,109640.0,0.00297]
[1757003767668,1.56590108,109650.0,109640.0,0.00297]
[1757003767869,1.56805108,109650.0,109640.0,0.00212]
[1757003768684,1.6600141,109650.0,109640.0,0.00212]
[1757003769307,0.18241517,109640.0,109630.0,0.07651631]
[1757003769539,1.47400172,109640.0,109630.0,0.07863631]
[1757003769937,0.93835287,109640.0,109630.0,0.26106812]
[1757003770141,1.09603287,109640.0,109630.0,0.26106812]
[1757003770354,1.09603287,109640.0,109630.0,0.18752181]
[1757003770750,1.09603287,109640.0,109630.0,0.00509]
[1757003770950,1.1009747,109640.0,109630.0,0.18852181]
[1757003771181,1.1009747,109640.0,109630.0,0.19052181]
[1757003771383,1.47894355,109640.0,109630.0,0.00809]
[1757003772434,1.43381698,109640.0,109630.0,0.00809]
[1757003773472,1.27613698,109640.0,109630.0,0.00809]
[1757003773682,1.43381698,109640.0,109630.0,0.00809]
[1757003774216,1.27613698,109640.0,109630.0,0.00809]
[1757003774420,1.43381698,109640.0,109630.0,0.00809]
[1757003775864,1.43596698,109640.0,109630.0,0.00809]
[1757003776076,1.43596698,109640.0,109630.0,0.00512]
[1757003776235,1.43381698,109640.0,109630.0,0.00809]
[1757003776656,1.43381698,109640.0,109630.0,0.00709]
[1757003776838,1.43381698,109640.0,109630.0,0.00509]
[1757003777060,1.27613698,109640.0,109630.0,0.00609]
[1757003777250,1.27613698,109640.0,109630.0,0.00709]
[1757003777251,1.43381698,109640.0,109630.0,0.00709]
[1757003777704,1.43381698,109640.0,109630.0,0.18952181]
[1757003777844,1.43381698,109640.0,109630.0,0.00709]
[1757003778959,1.43381698,109640.0,109630.0,0.00609]
[1757003779362,1.43381698,109640.0,109630.0,0.00709]
[1757003781603,0.16262183,109640.0,109630.0,0.18952181]
[1757003781805,0.93835287,109640.0,109630.0,0.18952181]
[1757003782007,1.09603287,109640.0,109630.0,0.00709]
[1757003782212,1.09603287,109640.0,109630.0,0.18952181]
[1757003782799,1.10116996,109640.0,109630.0,0.18952181]
[1757003783620,0.34523226,109640.0,109630.0,0.18952181]
[1757003783826,1.10116996,109640.0,109630.0,0.18952181]
[1757003784690,0.76107479,109640.0,109630.0,0.18952181]
[1757003784857,1.10120996,109640.0,109630.0,0.18952181]
[1757003785694,1.10120996,109640.0,109630.0,0.00709]
[1757003785852,1.10120996,109640.0,109630.0,0.18952181]
[1757003786478,1.10120996,109640.0,109630.0,0.00709]
[1757003786683,1.48132881,109640.0,109630.0,0.00709]
[1757003786884,1.62969728,109640.0,109630.0,0.002]
[1757003787086,1.65859728,109640.0,109630.0,0.002]
[1757003787451,1.6051348,109640.0,109630.0,0.002]
[1757003790723,3.07904135,109640.0,109630.0,0.002]
[1757003791478,0.18244845,109620.0,109610.0,0.0004]
[1757003791688,1.474035,109620.0,109610.0,0.0004]
[1757003791884,1.479175,109620.0,109610.0,0.0004]
[1757003792107,1.476185,109620.0,109610.0,0.00252]
[1757003792324,1.474035,109620.0,109610.0,0.00549]
[1757003792841,1.476185,109620.0,109610.0,0.00549]
[1757003793565,1.476185,109620.0,109610.0,0.00849]
[1757003793744,1.476185,109620.0,109610.0,0.00649]
[1757003794549,1.476185,109620.0,109610.0,0.00749]
[1757003794920,1.318505,109620.0,109610.0,0.00749]
[1757003795130,1.474035,109620.0,109610.0,0.1899551]
[1757003795306,1.474035,109620.0,109610.0,0.00749]
[1757003796101,1.474035,109620.0,109610.0,0.1899551]
[1757003796307,1.316355,109620.0,109610.0,0.1899551]
[1757003796525,1.474035,109620.0,109610.0,0.1899551]
[1757003797283,0.18244845,109620.0,109610.0,0.1899551]
[1757003797487,0.93838615,109620.0,109610.0,0.1899551]
[1757003797686,1.09606615,109620.0,109610.0,0.1899551]
[1757003798091,0.93838615,109620.0,109610.0,0.1899551]
[1757003798292,0.9136177,109620.0,109610.0,0.1899551]
[1757003798497,1.09606615,109620.0,109610.0,0.1899551]
[1757003804270,0.9136177,109620.0,109610.0,0.1899551]
[1757003804905,1.09606615,109620.0,109610.0,0.1899551]
[1757003805985,0.7559377,109620.0,109610.0,0.1899551]
[1757003806193,0.15768,109620.0,109610.0,0.1899551]
[1757003806404,0.9136177,109620.0,109610.0,0.21737909]
[1757003806824,1.476115,109620.0,109610.0,0.02982399]
[1757003807040,1.479145,109620.0,109610.0,0.02982399]
[1757003807688,1.479145,109620.0,109610.0,0.0024]
[1757003807905,1.60139099,109620.0,109610.0,0.0024]
[1757003811084,1.97935984,109620.0,109610.0,0.0024]
[1757003811317,2.31935984,109620.0,109610.0,0.0024]
[1757003811525,3.07529754,109620.0,109610.0,0.0024]
[1757003811732,3.19464337,109620.0,109610.0,0.0024]
[1757003811936,3.23543527,109620.0,109610.0,0.0024]
[1757003812158,3.23543527,109620.0,109610.0,0.0004]
[1757003814979,2.98583928,109620.0,109610.0,0.0004]
[1757003815205,3.14351928,109620.0,109610.0,0.0004]
[1757003816422,1.85193273,109620.0,109610.0,0.0004]
[1757003816630,2.00961273,109620.0,109610.0,0.0004]
[1757003816787,1.85193273,109620.0,109610.0,0.0004]
[1757003816982,1.43778083,109620.0,109610.0,0.00565]
[1757003817187,1.56803099,109620.0,109610.0,0.00565]
[1757003817594,1.1907367,109620.0,109610.0,0.00565]
[1757003818437,1.0330567,109620.0,109610.0,0.00565]
[1757003818658,1.1907367,109620.0,109610.0,0.00565]
[1757003820176,1.1907367,109620.0,109610.0,0.00242]
[1757003821412,1.1907367,109620.0,109610.0,0.0004]
[1757003821625,1.1907367,109620.0,109610.0,0.00242]
[1757003821835,1.1907367,109620.0,109610.0,0.0004]
[1757003822072,1.1907367,109620.0,109610.0,0.00242]
[1757003824923,1.28568269,109620.0,109610.0,0.0004]
[1757003825730,2.07256745,109620.0,109610.0,0.0004]
[1757003825955,2.09894887,109620.0,109610.0,0.0004]
[1757003826157,2.11857593,109620.0,109610.0,0.0004]
[1757003827516,2.11957593,109620.0,109610.0,0.0004]
[1757003828558,1.96189593,109620.0,109610.0,0.0004]
[1757003828772,1.84725634,109620.0,109610.0,0.0004]
[1757003828960,1.62663021,109620.0,109610.0,0.0004]
[1757003830209,2.00493634,109620.0,109610.0,0.0004]
[1757003830416,1.98530928,109620.0,109610.0,0.0004]
[1757003831692,2.00493115,109620.0,109610.0,0.0004]
[1757003831901,2.09684714,109620.0,109610.0,0.0004]
[1757003832296,2.07722527,109620.0,109610.0,0.0004]
[1757003833311,2.09685002,109620.0,109610.0,0.0004]
[1757003833513,1.44629315,109620.0,109610.0,0.0004]
[1757003833740,1.60393315,109620.0,109610.0,0.00255]
[1757003834339,1.60393315,109620.0,109610.0,0.0004]
[1757003834544,1.60393315,109620.0,109610.0,0.00255]
[1757003835216,1.60393315,109620.0,109610.0,0.0004]
[1757003835517,1.69584914,109620.0,109610.0,0.0004]
[1757003836058,1.44629315,109620.0,109610.0,0.00255]
[1757003836267,1.60393315,109620.0,109610.0,0.00255]
[1757003837508,1.62357548,109620.0,109610.0,0.0004]
[1757003837683,1.62357548,109620.0,109610.0,0.00575]
[1757003837886,1.59596548,109620.0,109610.0,0.00575]
[1757003838113,1.63671151,109620.0,109610.0,0.00575]
[1757003838310,1.47907151,109620.0,109610.0,0.00575]
[1757003838526,1.53327452,109620.0,109610.0,0.00575]
[1757003838691,1.37563452,109620.0,109610.0,0.00575]
[1757003838896,0.61902226,109620.0,109610.0,0.00575]
[1757003839161,0.61902226,109620.0,109610.0,0.1882151]
[1757003839162,0.001,109620.0,109610.0,0.1882151]
[1757003839464,0.53694613,109620.0,109610.0,0.1882151]
[1757003839948,0.15864,109620.0,109610.0,0.1882151]
[1757003840218,0.53694613,109620.0,109610.0,0.21564015]
[1757003841980,0.53594613,109620.0,109610.0,0.21564015]
[1757003842157,0.53594613,109620.0,109610.0,0.21764015]
[1757003843321,0.15764,109620.0,109610.0,0.21764015]
[1757003843524,0.53594613,109620.0,109610.0,0.21764015]
[1757003844224,0.15764,109620.0,109610.0,0.21764015]
[1757003844527,0.15764,109620.0,109610.0,0.21864015]
[1757003845688,0.71839458,109620.0,109610.0,0.21864015]
[1757003846293,0.71839458,109620.0,109610.0,0.03617505]
[1757003846517,1.09884071,109620.0,109610.0,0.00555]
[1757003846719,1.10209071,109620.0,109610.0,0.0034]
[1757003847155,1.09884071,109620.0,109610.0,0.0034]
[1757003847368,1.09884071,109620.0,109610.0,0.00455]
[1757003847610,1.09884071,109620.0,109610.0,0.0004]
[1757003847939,1.09884071,109620.0,109610.0,0.0014]
[1757003848119,0.34008845,109620.0,109610.0,0.00775]
[1757003848350,0.71839458,109620.0,109610.0,0.00775]
[1757003848625,0.72053458,109620.0,109610.0,0.00775]
[1757003849069,1.09670071,109620.0,109610.0,0.00775]
[1757003849271,0.34008845,109620.0,109610.0,0.1902151]
[1757003849700,0.71839458,109620.0,109610.0,0.1902151]
[1757003851160,0.58816539,109630.0,109610.0,0.1902151]
[1757003851370,0.15756,109620.0,109610.0,0.1870151]
[1757003851967,0.53586613,109620.0,109610.0,0.1902151]
[1757003852596,0.37830613,109620.0,109610.0,0.1902151]
[1757003852938,0.56073798,109630.0,109620.0,0.18244845]
[1757003853096,0.71829798,109630.0,109620.0,0.18459845]
[1757003853282,0.71829798,109630.0,109620.0,0.18779845]
[1757003853485,0.53586613,109630.0,109620.0,0.18779845]
[1757003853707,0.71829794,109630.0,109620.0,0.18779845]
[1757003855200,0.72043794,109630.0,109620.0,0.18779845]
[1757003855574,0.72043794,109630.0,109620.0,0.00535]
[1757003856012,0.72043794,109630.0,109620.0,0.18779845]
[1757003856979,0.18244845,109620.0,109610.0,0.2132492]
[1757003857193,0.37830613,109620.0,109610.0,0.2132492]
[1757003857551,0.33999181,109630.0,109610.0,0.2152992]
[1757003857896,0.56075458,109620.0,109610.0,0.2152992]
[1757003858118,0.37830613,109620.0,109610.0,0.2152992]
[1757003858257,0.33999181,109630.0,109620.0,0.18244845]
[1757003858470,0.71829794,109630.0,109620.0,0.18745845]
[1757003859929,0.72030794,109630.0,109620.0,0.18745845]
[1757003860084,0.34200181,109630.0,109620.0,0.18745845]
[1757003860288,0.72030794,109630.0,109620.0,0.18745845]
[1757003861157,0.72030794,109630.0,109610.0,0.2132492]
[1757003861475,0.34200181,109630.0,109620.0,0.18244845]
[1757003861682,0.34200181,109630.0,109620.0,0.18449845]
[1757003862238,0.33999181,109630.0,109620.0,0.18745845]
[1757003862435,0.71829794,109630.0,109620.0,0.18745845]
[1757003862687,0.72030794,109630.0,109620.0,0.00501]
[1757003862846,0.72030794,109630.0,109620.0,0.18745845]
[1757003863053,0.72030794,109630.0,109620.0,0.00205]
[1757003863615,0.72030794,109630.0,109620.0,0.18449845]
[1757003863981,0.72030794,109630.0,109620.0,0.00205]
[1757003864506,0.18244845,109620.0,109610.0,0.2102892]
[1757003864713,0.93906071,109620.0,109610.0,0.2102892]
[1757003864917,0.56276458,109620.0,109610.0,0.2152992]
[1757003865723,0.56276458,109620.0,109610.0,0.2123392]
[1757003866333,0.56276458,109620.0,109610.0,0.1849151]
[1757003866714,0.56276458,109620.0,109610.0,0.0004]
[1757003866920,0.56580458,109620.0,109610.0,0.1848651]
[1757003867316,0.56276458,109620.0,109610.0,0.1848651]
[1757003867527,0.18445845,109620.0,109610.0,0.0024]
[1757003867722,0.56276458,109620.0,109610.0,0.0024]
[1757003867925,0.56276458,109620.0,109610.0,0.1848651]
[1757003868131,0.56276458,109620.0,109610.0,0.1869151]
[1757003868334,0.38031613,109620.0,109610.0,0.1898751]
[1757003868547,0.53779613,109620.0,109610.0,0.1898751]
[1757003868899,0.53578613,109620.0,109610.0,0.1898751]
[1757003869097,0.71823458,109620.0,109610.0,0.1898751]
[1757003869299,0.53578613,109620.0,109610.0,0.1898751]
[1757003869685,0.71823458,109620.0,109610.0,0.1898751]
[1757003870140,0.72024458,109620.0,109610.0,0.1898751]
[1757003870776,0.56276458,109620.0,109610.0,0.1898751]
[1757003870999,0.72024458,109620.0,109610.0,0.1898751]
[1757003871883,0.53779613,109620.0,109610.0,0.1898751]
[1757003872123,0.72024458,109620.0,109610.0,0.1898751]
[1757003872496,0.33610759,109620.0,109610.0,0.1898751]
[1757003872708,0.21079181,109630.0,109620.0,0.18244845]
[1757003872903,0.74855794,109630.0,109620.0,0.00296]
[1757003873414,0.74855794,109630.0,109610.0,0.1878251]
[1757003873622,0.37830613,109620.0,109610.0,0.1868251]
[1757003873786,0.37830613,109620.0,109610.0,0.1858251]
[1757003873982,0.37830613,109620.0,109610.0,0.1878751]
[1757003874844,0.56073794,109630.0,109620.0,0.18244845]
[1757003875023,0.71817794,109630.0,109620.0,0.18449845]
[1757003875231,0.71817794,109630.0,109620.0,0.18745845]
[1757003875433,0.72015794,109630.0,109620.0,0.18244845]
[1757003875583,0.18244845,109620.0,109610.0,0.1868251]
[1757003875785,0.56075458,109620.0,109610.0,0.1868251]
[1757003875985,0.56075458,109620.0,109610.0,0.1888751]
[1757003876259,0.56075458,109620.0,109610.0,0.1898751]
[1757003876576,0.56075458,109620.0,109610.0,0.1888751]
[1757003877717,0.18244845,109620.0,109610.0,0.1898751]
[1757003877915,0.56273458,109620.0,109610.0,0.1898751]
[1757003879467,0.18244845,109620.0,109610.0,0.1898751]
[1757003879619,0.56066058,109620.0,109610.0,0.1898751]
[1757003880124,0.56264058,109620.0,109610.0,0.1898751]
[1757003880352,0.18442845,109620.0,109610.0,0.1898751]
[1757003880548,0.94085271,109620.0,109610.0,0.1898751]
[1757003881135,0.33987181,109630.0,109610.0,0.1898751]
[1757003881360,0.37821213,109620.0,109610.0,0.1898751]
[1757003882158,0.56066058,109620.0,109610.0,0.1888751]
[1757003882295,0.56264058,109620.0,109610.0,0.1888751]
[1757003882503,0.94085271,109620.0,109610.0,0.1888751]
[1757003882937,0.94085271,109620.0,109610.0,0.1878751]
[1757003883370,0.93887271,109620.0,109610.0,0.1878751]
[1757003883571,0.94085271,109620.0,109610.0,0.1878751]
[1757003883997,0.94085271,109620.0,109610.0,0.1858251]
[1757003884199,0.94085271,109620.0,109610.0,0.1848651]
[1757003884406,1.32110484,109620.0,109610.0,0.0024]
[1757003884608,1.53329682,109620.0,109610.0,0.0024]
[1757003885600,1.69065682,109620.0,109610.0,0.0014]
[1757003885800,1.69065682,109620.0,109610.0,0.0004]
[1757003886062,0.39866043,109620.0,109610.0,0.0004]
[1757003886268,1.43934083,109620.0,109610.0,0.0004]
[1757003886421,1.59670083,109620.0,109610.0,0.0004]
[1757003886902,0.18244845,109620.0,109610.0,0.1879751]
[1757003887070,0.53557213,109620.0,109610.0,0.1879751]
[1757003887274,1.09623271,109620.0,109610.0,0.1879751]
[1757003887719,1.09623271,109620.0,109610.0,0.00551]
[1757003887869,1.09821271,109620.0,109610.0,0.00551]
[1757003888076,1.09821271,109620.0,109610.0,0.1879751]
[1757003889301,1.09821271,109620.0,109610.0,0.00551]
[1757003889510,1.09821271,109620.0,109610.0,0.1879751]
[1757003890074,1.09821271,109620.0,109610.0,0.0004]
[1757003890544,1.47642484,109620.0,109610.0,0.0004]
[1757003890907,1.47642484,109620.0,109610.0,0.1828651]
[1757003891117,0.94085271,109620.0,109610.0,0.1828651]
[1757003891325,1.09821271,109620.0,109610.0,0.1879751]
[1757003891908,1.09821271,109620.0,109610.0,0.1828651]
[1757003892322,1.09821271,109620.0,109610.0,0.1879751]
[1757003892536,0.24967181,109630.0,109620.0,0.18244845]
[1757003892741,0.5009278,109630.0,109620.0,0.00511]
[1757003892947,0.5009278,109630.0,109610.0,0.1858451]
[1757003893160,0.75642426,109620.0,109610.0,0.1858451]
[1757003893363,0.75642426,109620.0,109610.0,0.1879751]
[1757003894334,0.15736,109620.0,109610.0,0.1879751]
[1757003894492,0.25067181,109630.0,109620.0,0.18244845]
[1757003894704,0.40997181,109630.0,109620.0,0.18755845]
[1757003895115,0.40997181,109630.0,109610.0,0.1858451]
[1757003895266,0.40997181,109630.0,109620.0,0.00298]
[1757003895471,1.16539607,109630.0,109620.0,0.00511]
[1757003896247,0.18244845,109620.0,109610.0,0.0004]
[1757003896463,0.93887271,109620.0,109610.0,0.1858451]
[1757003896677,0.75642426,109620.0,109610.0,0.1879751]
[1757003896892,0.40799181,109630.0,109610.0,0.1879751]
[1757003897069,0.40799181,109630.0,109620.0,0.18542845]
[1757003897297,0.18244845,109620.0,109610.0,0.1858451]
[1757003897499,0.18244845,109620.0,109610.0,0.1879751]
[1757003898284,0.93887271,109620.0,109610.0,0.1879751]
[1757003898869,0.75642426,109620.0,109610.0,0.1879751]
[1757003899078,0.33975181,109630.0,109610.0,0.1879751]
[1757003899273,0.75642426,109620.0,109610.0,0.1879751]
[1757003899828,0.94085271,109620.0,109610.0,0.1879751]
[1757003900564,0.75642426,109620.0,109610.0,0.1879751]
[1757003901167,0.33975181,109630.0,109610.0,0.1879751]
[1757003901374,0.75642426,109620.0,109610.0,0.1879751]
[1757003901601,0.98212514,109640.0,109620.0,0.1824386]
[1757003901849,1.09617806,109630.0,109620.0,0.1854186]
[1757003902038,1.09617806,109630.0,109620.0,0.1875486]
[1757003902279,1.09815806,109630.0,109610.0,0.1858451]
[1757003902487,0.3417338,109630.0,109620.0,0.18244845]
[1757003903411,0.3427338,109630.0,109620.0,0.18244845]
[1757003903613,1.09915806,109630.0,109620.0,0.18244845]
[1757003903819,1.09915806,109630.0,109620.0,0.18755845]
[1757003904019,1.09815806,109630.0,109620.0,0.18755845]
[1757003904277,1.09815806,109630.0,109610.0,0.1858451]
[1757003904514,0.75642426,109620.0,109610.0,0.1858451]
[1757003905067,0.75642426,109620.0,109610.0,0.1879751]
[1757003905271,0.3407538,109630.0,109620.0,0.18244845]
[1757003905491,1.09915806,109630.0,109620.0,0.18244845]
[1757003905720,1.09815806,109630.0,109620.0,0.18244845]
[1757003905907,1.09815806,109630.0,109610.0,0.1858451]
[1757003906108,0.3427338,109630.0,109620.0,0.18244845]
[1757003906431,0.3427338,109630.0,109620.0,0.18755845]
[1757003906627,0.3417338,109630.0,109620.0,0.18755845]
[1757003907069,0.3417338,109630.0,109620.0,0.18244845]
[1757003907271,1.09915806,109630.0,109620.0,0.18244845]
[1757003907839,0.15832,109630.0,109620.0,0.18755845]
[1757003908044,0.53653213,109630.0,109620.0,0.18755845]
[1757003908923,0.15832,109630.0,109620.0,0.18755845]
[1757003909127,0.91374426,109630.0,109620.0,0.18755845]
[1757003909336,1.09815607,109630.0,109620.0,0.18755845]
[1757003909527,1.09617607,109630.0,109620.0,0.18755845]
[1757003909727,0.91374426,109630.0,109620.0,0.18755845]
[1757003909950,0.91374426,109630.0,109620.0,0.18855845]
[1757003910778,0.91374426,109630.0,109620.0,0.18955845]
[1757003911205,0.91572426,109630.0,109620.0,0.18955845]
[1757003911364,0.91374426,109630.0,109620.0,0.18955845]
[1757003912988,0.53549213,109630.0,109620.0,0.18955845]
[1757003913723,0.45058922,109640.0,109630.0,0.18243181]
[1757003913889,0.91884135,109640.0,109630.0,0.18754181]
[1757003914953,1.10323652,109640.0,109630.0,0.18754181]
[1757003915711,1.10323652,109640.0,109630.0,0.18243181]
[1757003915910,0.18243181,109630.0,109620.0,0.18244845]
[1757003916112,1.09811607,109630.0,109610.0,0.37978841]
[1757003916361,0.75642426,109620.0,109610.0,0.35236835]
[1757003916517,0.75642426,109620.0,109610.0,0.35436835]
[1757003918447,0.33971181,109630.0,109620.0,0.18244845]
[1757003918563,0.34169181,109630.0,109620.0,0.18244845]
[1757003919612,1.09811607,109630.0,109620.0,0.18244845]
[1757003920012,1.09811607,109630.0,109620.0,0.18444845]
[1757003922203,1.09811607,109630.0,109620.0,0.18954845]
[1757003922645,1.09811607,109630.0,109620.0,0.18444845]
[1757003923428,0.91568426,109630.0,109620.0,0.18644845]
[1757003923661,1.09827607,109630.0,109620.0,0.18954845]
[1757003923988,0.91366426,109630.0,109620.0,0.18954845]
[1757003924425,0.15724,109630.0,109620.0,0.18954845]
[1757003924613,0.91366426,109630.0,109620.0,0.18954845]
[1757003924854,0.34479226,109640.0,109630.0,0.18243181]
[1757003925060,1.10319652,109640.0,109630.0,0.18443181]
[1757003925342,1.10319652,109640.0,109630.0,0.18753181]
[1757003925799,0.91880135,109640.0,109630.0,0.18753181]
[1757003925998,1.10319652,109640.0,109630.0,0.18753181]
[1757003926695,0.91880135,109640.0,109630.0,0.18753181]
[1757003927714,0.15728703,109650.0,109640.0,0.18241517]
[1757003927952,0.34803636,109650.0,109640.0,0.18751517]
[1757003928089,0.34803636,109650.0,109640.0,0.18241517]
[1757003928510,0.34803636,109650.0,109640.0,0.18751517]
[1757003928711,0.16563782,109650.0,109640.0,0.18751517]
[1757003928911,0.54286995,109650.0,109640.0,0.18751517]
[1757003929641,0.54286995,109650.0,109640.0,0.21493242]
[1757003930991,0.16465782,109650.0,109640.0,0.21493242]
[1757003931198,0.54286995,109650.0,109640.0,0.21493242]
[1757003934153,0.38562995,109650.0,109640.0,0.21493242]
[1757003934350,0.00104703,109650.0,109640.0,0.21493242]
[1757003934550,0.37925916,109650.0,109640.0,0.21493242]
[1757003934751,0.38574991,109650.0,109640.0,0.21493242]
[1757003934951,0.37925916,109650.0,109640.0,0.21493242]
[1757003935178,0.37825916,109650.0,109640.0,0.21493242]
[1757003935524,0.37825916,109650.0,109640.0,0.21593242]
[1757003936798,0.37825916,109650.0,109640.0,0.21793242]
[1757003937000,0.37825916,109650.0,109640.0,0.30984841]
[1757003937225,0.37825916,109650.0,109640.0,0.33078723]
[1757003937648,0.37825916,109650.0,109640.0,0.3712224]
[1757003937649,4.703e-05,109650.0,109640.0,0.3712224]
[1757003938063,4.703e-05,109650.0,109640.0,1.08943453]
[1757003938683,4.703e-05,109650.0,109640.0,0.7112224]
[1757003939094,4.703e-05,109650.0,109640.0,0.8683824]
[1757003939549,4.703e-05,109650.0,109640.0,0.7112224]
[1757003939759,4.703e-05,109650.0,109640.0,0.8683824]
[1757003940164,4.703e-05,109650.0,109640.0,0.7112224]
[1757003940375,0.37794218,109650.0,109640.0,0.80700841]
[1757003940573,0.37992218,109650.0,109640.0,0.55793242]
[1757003940771,0.37992218,109650.0,109640.0,0.71509242]
[1757003941117,0.37794218,109650.0,109640.0,0.71509242]
[1757003941525,0.37992218,109650.0,109640.0,0.71509242]
[1757003941727,0.71948072,109650.0,109640.0,0.37509242]
[1757003941934,1.09941587,109650.0,109640.0,0.21283242]
[1757003942111,1.09941587,109650.0,109640.0,0.18541517]
[1757003942261,1.09941587,109650.0,109640.0,0.003]
[1757003942468,1.09737587,109650.0,109640.0,0.003]
[1757003942669,1.09941587,109650.0,109640.0,0.003]
[1757003942874,1.12734587,109650.0,109640.0,0.003]
[1757003944280,0.37155557,109650.0,109640.0,0.003]
[1757003944488,1.12734587,109650.0,109640.0,0.003]
[1757003944678,0.9429203,109650.0,109640.0,0.003]
[1757003944919,0.9409703,109650.0,109640.0,0.003]
[1757003945093,1.12336884,109650.0,109640.0,0.003]